Cogmind - Beta 9.3 --- EXPLORER MODE // 2020.01.02 @ 15:50:10 // Winter2019/RPGLIKE Player: Blade_Drake Result: Destroyed by G-73 Enforcer with Phase Gun Performance ------------- Evolutions (8) 4000 Regions Visited (20) 4000 Robots Destroyed (391) 1955 Value Destroyed (19746) 19746 Prototype IDs (20) 400 Alien Tech Used (0) 0 Bonus (6378) 6378 TOTAL SCORE: 36479 Bonus ------- High Alert Combat Kills 2565 Follower Combat Kills 546 Entered Garrisons 1200 Used RIF Installer 3000 Aligned with FarCom 300 Friendly Fire -1233 Cogmind --------- Core Integrity 0/1250 Matter 499/500 Energy 955/955 System Corruption 6% Temperature Cool (9) Movement Treading (156) Location -2/Research Parts ------- > --- POWER (3) -------- Antimatter Reactor Particle Reactor Particle Reactor > --- PROPULSION (6) --- Improved Heavy Siege Treads Biometal Heavy Treads Biometal Heavy Treads > --- UTILITY (9) ------ Experimental Signal Interpreter Experimental Targeting Computer Quantum Capacitor Heavy Armor Plating Experimental Hacking Suite Experimental Hacking Suite Corruption Screen > --- WEAPON (6) ------- Improved Lightning Gun Compact HERF Cannon XL Autogun Array > --- INVENTORY (7) ---- Compact HERF Cannon Heavy Gauss Cannon Linear Accelerator Mini Smartbomb Launcher Fusion Bomb Launcher Advanced Remote Datajack Power Sword Peak State ------------ > --- POWER ------------ Antimatter Reactor Particle Reactor Particle Reactor > --- PROPULSION ------- Improved Heavy Siege Treads Biometal Heavy Treads Biometal Heavy Treads > --- UTILITY ---------- Experimental Signal Interpreter Experimental Targeting Computer Experimental Target Analyzer Quantum Capacitor Heavy Armor Plating Experimental Hacking Suite Experimental Hacking Suite > --- WEAPON ----------- Compact HERF Cannon XL Autogun Array Advanced Remote Datajack > --- INVENTORY -------- Triangulator Advanced Remote Shield Corruption Screen Heavy Missile Launcher Mini Smartbomb Launcher Fusion Bomb Launcher Power Sword [Rating: 188] Favorites ----------- Power Particle Reactor Engine Heavy Deuterium Engine Power Core Neutrino Core Reactor Particle Reactor Propulsion Medium Treads Treads Medium Treads Leg Aluminum Leg Hover Unit Gravmag System Flight Unit Cooled VTOL Module Utility Relay Coupler [NC] Device Quantum Capacitor Processor Experimental Targeting Computer Hackware Relay Coupler [NC] Protection Improved Heavy Armor Plating Weapon XL Autogun Array Energy Gun Small Laser Energy Cannon Phase Cannon Ballistic Gun XL Autogun Array Ballistic Cannon Compact Mass Driver Launcher Rocket Array Special Weapon Advanced Remote Datajack Slashing Weapon Chainsword Special Melee Weapon Improved Datajack Build | -11 -10 -10 -10 -9 -8 -8 -7 -7 -7 -7 -6 -6 -5 -5 -4 -4 -4 -4 -3 -2 ------- Run | Scr Mat Min Exi Min Mat Gar Fac Gar Fac Gar Fac Ext Fac Gar Fac Gar Fac Gar Res Res Slots Evolved 20 | 3 . 1 . 1 5 1 1 . 3 1 . . 1 . 1 . . . 2 . Power 2 | . . . . . . . . . 2 . . . . . . . . . . . Propulsion 5 | 1 . . . . 2 . 1 . . . . . . . . . . . 1 . Utility 8 | 1 . 1 . . 1 1 . . 1 . . . 1 . 1 . . . 1 . Weapon 5 | 1 . . . 1 2 . . . . 1 . . . . . . . . . . Parts Attached 266 | 7 5 2 3 . 10 1 6 . 51 2 22 7 16 7 11 6 22 6 61 21 Power 25 | 1 . . . . 1 . . . 5 . 3 . 4 . . . 4 1 6 . Engine 6 | 1 . . . . 1 . . . 3 . 1 . . . . . . . . . Core 7 | . . . . . . . . . 2 . 2 . 3 . . . . . . . Reactor 12 | . . . . . . . . . . . . . 1 . . . 4 1 6 . Propulsion 44 | 2 1 . . . 5 . 1 . 15 1 3 . 6 1 2 . 1 . 6 . Treads 26 | 2 1 . . . . . . . 4 1 3 . 5 1 2 . 1 . 6 . Leg 10 | . . . . . 5 . 1 . 4 . . . . . . . . . . . Wheel . | . . . . . . . . . . . . . . . . . . . . . Hover 7 | . . . . . . . . . 6 . . . 1 . . . . . . . Flight 1 | . . . . . . . . . 1 . . . . . . . . . . . Utility 59 | 2 1 1 . . 2 1 3 . 12 . 5 . 2 . 2 . 6 1 21 . Device 32 | . 1 1 . . 1 1 1 . 4 . 1 . 2 . 2 . 3 . 15 . Storage . | . . . . . . . . . . . . . . . . . . . . . Processor 9 | 1 . . . . . . 2 . 1 . . . . . . . 2 . 3 . Hackware 8 | . . . . . . . . . 3 . 2 . . . . . 1 1 1 . Protection 10 | 1 . . . . 1 . . . 4 . 2 . . . . . . . 2 . Artifact . | . . . . . . . . . . . . . . . . . . . . . Weapon 138 | 2 3 1 3 . 2 . 2 . 19 1 11 7 4 6 7 6 11 4 28 21 Energy Gun 11 | 1 1 . 1 . 1 . . . . . 1 . . . . . 1 . 1 4 Energy Cannon 37 | . 1 . 1 . . . 2 . 8 . 6 3 3 2 . 1 . 1 3 6 Ballistic Gun 4 | 1 1 . . . 1 . . . 1 . . . . . . . . . . . Ballistic Cannon 30 | . . . . . . . . . . . . 1 . 2 3 2 3 . 8 11 Launcher 20 | . . 1 1 . . . . . 2 . . 1 . 1 1 2 4 2 5 . Special Weapon 21 | . . . . . . . . . 1 . 3 2 . 1 3 . 3 . 8 . Impact Weapon . | . . . . . . . . . . . . . . . . . . . . . Slashing Weapon 10 | . . . . . . . . . 2 1 1 . 1 . . 1 . 1 3 . Piercing Weapon . | . . . . . . . . . . . . . . . . . . . . . Special Melee Weapon 5 | . . . . . . . . . 5 . . . . . . . . . . . Unidentified Prototypes 17 | . . . . . 2 . . . 4 . 1 . . . . . 2 . 7 1 Parts Lost 4 | . . . . . . . . . 2 . 1 . . . . 1 . . . . Power 3 | . . . . . . . . . 2 . 1 . . . . . . . . . Propulsion . | . . . . . . . . . . . . . . . . . . . . . Utility 1 | . . . . . . . . . . . . . . . . 1 . . . . Weapon . | . . . . . . . . . . . . . . . . . . . . . Highest Loss Streak 1 | . . . . . . . . . 1 . 1 . . . . 1 . . . . Average Slot Usage (%) 75 | . 100 100 99 88 70 79 76 81 80 83 78 75 72 77 72 69 66 63 65 66 Engine 5 | . 14 12 12 11 7 6 6 6 7 10 9 5 4 4 4 4 2 . . . Core 2 | . . . . . . . . . 2 5 5 5 4 4 4 4 4 4 1 . Reactor 4 | . . . . . . . . . . . . . 2 4 4 4 6 9 10 12 Treads 14 | . 28 25 25 22 6 . . . 2 24 23 25 19 20 18 18 12 9 12 12 Leg 4 | . . . . . 18 26 27 31 15 . . . . . . . . . . . Hover 1 | . . . . . . . . . 10 . . . . . . . . . . . Device 9 | . 7 24 25 22 16 19 12 12 6 4 1 . 5 9 9 9 12 9 8 8 Processor 7 | . 14 12 12 11 7 6 10 12 13 15 9 5 1 . . . 2 4 7 8 Hackware 6 | . . . . . . . . . 8 5 11 15 14 14 13 10 6 9 6 8 Protection 3 | . 6 . . . 5 6 6 6 1 5 4 5 4 4 4 4 4 4 4 4 Energy Gun 2 | . 12 8 11 11 . 6 1 . . . . . . . . . . . . 2 Energy Cannon 4 | . 6 12 11 11 . . 4 6 2 . 8 7 8 5 4 3 4 3 3 2 Ballistic Gun 4 | . 9 . . . 7 6 6 6 5 5 5 5 4 4 4 4 4 4 4 4 Naked Turns . | . . . . . . . . . . . . . . . . . . . . . Heaviest Build 122 | 9 9 12 12 9 37 39 45 45 68 71 80 67 87 87 95 95 102 104 122 113 Greatest Support 230 | 40 40 40 40 40 40 45 63 63 117 145 145 129 147 157 159 159 180 150 230 230 Greatest Overweight (x) 3 | . . . . . 3 . . . 2 . 1 . 3 . . . . . . . Average Overweight (x) . | . . . . . . . . . . . . . . . . . . . . . Largest Inventory Capacity 7 | 4 4 4 4 4 4 5 5 5 5 5 6 6 6 6 6 6 7 7 7 7 Average Capacity 5 | 4 4 4 4 4 4 4 5 5 5 5 5 6 6 6 6 6 6 7 7 7 Most Carried 7 | 4 4 4 4 4 4 4 5 4 5 5 6 5 6 6 6 6 7 6 7 7 Average Carried 4 | 1 3 3 3 4 2 2 3 2 4 3 4 4 5 5 5 6 5 5 5 6 Final Capacity 7 | 4 4 4 4 4 4 5 5 5 5 5 6 6 6 6 6 6 7 7 7 7 Final Carried 7 | 4 4 4 4 4 3 3 3 4 3 5 4 5 6 6 6 6 6 5 6 7 Class Distribution -------------------- 27% | Hacker-Executioner 23% | Hacker-Mutant 13% | Hacker-Skirmisher 8% | Scavenger-Skirmisher 6% | Hacker-Assassin 4% | Wizard-Executioner 3% | Hacker-Scout Dominant Class ---------------- Hacker-Mutant | -10/Materials Hacker-Mutant | -10/Mines Hacker-Mutant | -10/Exiles Hacker-Skirmisher | -9/Mines Scavenger-Skirmisher | -8/Materials Scavenger-Skirmisher | -8/Garrison Scavenger-Mutant | -7/Factory Scavenger-Skirmisher | -7/Garrison Hacker-Scout | -7/Factory Hacker-Assassin | -7/Garrison Hacker-Skirmisher | -6/Factory Hacker-Mutant | -6/Extension Hacker-Skirmisher | -5/Factory Hacker-Executioner | -5/Garrison Hacker-Executioner | -4/Factory Hacker-Executioner | -4/Garrison Hacker-Executioner | -4/Factory Hacker-Executioner | -4/Garrison Hacker-Executioner | -3/Research Wizard-Mutant | -2/Research Resources | -11 -10 -10 -10 -9 -8 -8 -7 -7 -7 -7 -6 -6 -5 -5 -4 -4 -4 -4 -3 -2 ----------- Run | Scr Mat Min Exi Min Mat Gar Fac Gar Fac Gar Fac Ext Fac Gar Fac Gar Fac Gar Res Res Matter Collected 12363 | 56 327 . . . 315 479 254 443 1452 433 263 148 1185 612 324 483 1193 500 2916 980 Remotely . | . . . . . . . . . . . . . . . . . . . . . Salvage Created 18757 | . 356 60 . . 336 479 279 811 1709 679 328 829 2018 1013 244 609 1960 1094 4243 1710 Parts 913 | . 33 3 . . 46 34 9 33 104 25 27 34 103 30 16 17 74 38 215 72 Haulers Intercepted 10 | . 1 . . . 1 . . . 2 . 1 . . . . . 2 . 3 . Recyclers Shooed 14 | . . . . . . . . . 1 . . 1 8 . 1 . 1 . 1 1 Parts Field Recycled 10 | . . . . . . . . . 1 4 . . . . . . . . 5 . Retrieved Matter 151 | . . . . . . . . . 27 31 . . . . . . . . 93 . Parts Self-Destructed . | . . . . . . . . . . . . . . . . . . . . . Prevented . | . . . . . . . . . . . . . . . . . . . . . Kills | -11 -10 -10 -10 -9 -8 -8 -7 -7 -7 -7 -6 -6 -5 -5 -4 -4 -4 -4 -3 -2 ------- Run | Scr Mat Min Exi Min Mat Gar Fac Gar Fac Gar Fac Ext Fac Gar Fac Gar Fac Gar Res Res Combat Hostiles Destroyed 295 | . 9 2 . . 14 17 4 18 31 14 10 5 28 16 3 9 29 16 52 18 Melee 2 | . . . . . . . . . . 2 . . . . . . . . . . Guns 198 | . 5 . . . 14 17 2 16 27 12 6 3 13 6 1 6 17 10 34 9 Cannons 68 | . 4 2 . . . . 2 1 3 . 3 1 12 5 2 3 9 4 13 4 AOE 15 | . . . . . . . . . . . 1 . 3 4 . . 3 2 2 . Classes Destroyed 17 | . 4 . . . 6 . 1 . 3 . 1 1 . . . . 1 . . . Worker 20 | . . . . . 2 . . . 3 . . . 9 . . . 1 . 3 2 Builder 12 | . . . . . . . . . 4 . . 2 1 . 1 . . . 3 1 Tunneler 1 | . . . . . 1 . . . . . . . . . . . . . . . Hauler 10 | . 1 . . . 1 . . . 2 . 1 . . . . . 2 . 3 . Recycler 17 | . . . . . . . . . 1 . . 5 6 . 1 . 1 . 2 1 Operator 5 | . . . . . . . . . 2 . 1 . . . . . . . 2 . Watcher 28 | . 2 . . . 1 . . . 4 1 2 1 2 1 1 . 3 . 4 6 Swarmer 45 | . 6 . . . 5 7 . 7 3 3 . . 3 3 . . 3 3 2 . Saboteur 1 | . . . . . . . . . . . 1 . . . . . . . . . Grunt 128 | . 3 2 . . 4 8 2 6 18 8 6 . 13 7 1 7 16 8 19 . Brawler 8 | . . . . . 1 1 . . . 1 . . 1 . . . 1 . 2 1 Duelist 6 | . . . . . 1 1 . 1 . . 1 . . . . . . . 1 1 Protector 1 | . . . . . . . . . . . . . . . . . 1 . . . Sentry 27 | . . . . . 2 . . 3 2 3 1 3 . 2 . . 2 1 6 2 Hunter 43 | . . . . . 1 . 1 . 4 1 . . 5 4 . . 4 4 8 11 Programmer 34 | . . . . . . . 1 1 4 . 1 1 5 . 2 1 2 . 13 3 Behemoth 5 | . . . . . . . . . . . . 2 1 . . 1 . . 1 . Best Kill Streak 16 | . 2 2 . . 12 6 2 16 11 5 5 4 13 8 3 8 7 9 10 16 Combat Bots Only 16 | . 2 2 . . 4 6 2 16 10 5 5 2 8 8 2 8 6 9 5 9 Max Kills in Single Turn 4 | . 1 1 . . 3 2 1 1 2 2 1 2 4 4 1 2 3 1 2 1 Gunslinging 1 | . . . . . 1 1 . . . . . . . . . . . . . . Exploded 4 | . . . . . . . . . . . 1 . 2 4 . . 2 1 1 . Melee 1 | . . . . . . . . . . 1 . . . . . . . . . . Uniques/NPCs Destroyed . | . . . . . . . . . . . . . . . . . . . . . Combat | -11 -10 -10 -10 -9 -8 -8 -7 -7 -7 -7 -6 -6 -5 -5 -4 -4 -4 -4 -3 -2 -------- Run | Scr Mat Min Exi Min Mat Gar Fac Gar Fac Gar Fac Ext Fac Gar Fac Gar Fac Gar Res Res Damage Taken 11073 | . 52 46 . . 80 256 63 255 503 252 249 467 1579 719 76 304 1736 457 1932 2047 Core 8544 | . 40 33 . . 63 198 50 190 391 190 183 355 1205 553 58 234 1346 353 1498 1604 Absorbed by Shields 30 | . . . . . . . . . . . . . . . . . . . 30 . Reduced by Siege Mode 58 | . . . . . . . . . . . . . . 8 . . 15 2 10 23 Redirected to Core 7991 | . 30 33 . . 54 181 39 178 338 188 183 315 1107 509 58 234 1274 343 1433 1494 Core Remaining (%) 93 | 100 . . . 100 . 100 . . . 100 . 83 . 74 . . . 90 100 . Volleys Fired 828 | . 21 5 5 . 26 35 8 40 90 20 29 39 81 26 15 18 98 33 166 73 Largest 3 | . 2 2 2 . 2 2 2 2 2 1 3 2 3 3 3 3 3 2 3 3 Hottest 242 | . 110 100 93 . 115 115 140 141 148 60 240 180 222 231 207 207 238 150 242 215 Shots Fired 1341 | . 42 10 6 . 28 56 13 42 93 20 55 55 125 70 33 43 171 51 284 144 Gun 674 | . 31 5 1 . 28 56 9 31 60 19 14 21 41 22 10 16 75 26 125 84 Cannon 579 | . 11 5 1 . . . 4 11 19 . 36 30 84 46 18 24 84 21 125 60 Launcher 33 | . . . 4 . . . . . 2 1 1 . . 1 . 3 6 4 11 . Special 55 | . . . . . . . . . 12 . 4 4 . 1 5 . 6 . 23 . Kinetic 656 | . 13 . . . 22 22 5 31 60 19 14 23 41 37 20 32 63 26 158 70 Thermal 365 | . 29 10 2 . 6 34 8 . . . 36 28 60 11 8 8 96 21 8 . Explosive 33 | . . . 4 . . . . . 2 1 1 . . 1 . 3 6 4 11 . Electromagnetic 232 | . . . . . . . . 11 19 . . . 24 20 . . . . 84 74 Robot Hit Streak 117 | . 8 6 . . 21 38 16 32 39 62 31 39 98 107 36 47 59 44 93 117 Robot Miss Streak 4 | . 2 2 . . 4 2 1 1 2 1 1 2 1 1 2 1 2 1 2 1 Penetration Max 1 | . . . . . . . . . . . . . . . . . . . 1 1 Secondary Targets 4 | . . . . . 1 2 1 . . . . . . . . . . . . . Max Gunslinging Chain 1 | . . . . . 1 1 1 . . . . . . . . . . . . . Capacitor 62 | . . . . . . . . . . . . . . . . . 24 3 21 14 Shots Hit Robots 1158 | . 29 6 . . 28 46 10 39 98 22 41 48 114 55 26 35 138 39 250 134 Core Hits 802 | . 16 3 . . 26 32 7 28 72 32 30 25 103 34 11 22 90 36 173 62 Critical Hits 27 | . . . . . . . . . . . . 1 1 3 . 5 4 . 9 4 Critical Kills 11 | . . . . . . . . . . . . . . 2 . 1 2 . 4 2 Critical Parts Destroyed 15 | . . . . . . . . . . . . 1 1 1 . 3 2 . 5 2 Melee Attacks 44 | . . . . . . . . . 15 8 2 . 4 . . 3 . 1 11 . Impact . | . . . . . . . . . . . . . . . . . . . . . Slashing 37 | . . . . . . . . . 8 8 2 . 4 . . 3 . 1 11 . Piercing . | . . . . . . . . . . . . . . . . . . . . . Sneak Attacks 7 | . . . . . . . . . 7 . . . . . . . . . . . Combat Hostiles . | . . . . . . . . . . . . . . . . . . . . . Follow-up Attacks . | . . . . . . . . . . . . . . . . . . . . . Damage Inflicted 58224 | . 377 87 . . 1379 1606 394 2330 5027 1735 1868 2571 6449 2329 1228 2277 7527 2724 13512 4804 Guns 36827 | . 237 34 . . 1379 1606 283 1969 4144 1351 639 1675 2946 759 709 1346 3903 1690 9093 3064 Cannons 16117 | . 140 53 . . . . 110 361 642 . 797 896 2250 1301 508 615 2838 726 3167 1713 Explosions 4881 | . . . . . . . . . 204 291 392 . 1105 269 . 316 786 308 1210 . Melee 318 | . . . . . . . . . 37 93 40 . 148 . . . . . . . Ramming 81 | . . . . . . . 1 . . . . . . . 11 . . . 42 27 Kinetic 37100 | . 47 . . . 1261 1094 229 1969 4144 1351 639 1739 2946 1045 915 1702 3448 1690 9875 3006 Thermal 10340 | . 330 87 . . 118 512 164 . . . 797 832 2090 413 302 259 3293 726 417 . Explosive 3890 | . . . . . . . . . 204 291 392 . 172 269 . 316 786 308 1152 . Electromagnetic 6495 | . . . . . . . . 361 642 . . . 1093 602 . . . . 2026 1771 Impact . | . . . . . . . . . . . . . . . . . . . . . Slashing 318 | . . . . . . . . . 37 93 40 . 148 . . . . . . . Piercing . | . . . . . . . . . . . . . . . . . . . . . Highest Corruption 12 | . . . . . . . . 1 1 1 . . 3 3 . 1 2 2 12 6 Average Corruption 2 | . . . . . . . . 1 1 1 . . 1 3 . 1 1 2 3 5 Corruption Purged 1 | . . . . . . . . . 1 . . . . . . . . . . . Effects 111 | . . . . . . . . 1 2 3 . . 6 11 . 2 3 4 66 13 Message Errors 13 | . . . . . . . . . 1 . . . . 3 . . . . 8 1 Matter Fused 19 | . . . . . . . . . . . . . 2 . . . . . 17 . Heat Flow Errors 13 | . . . . . . . . . . . . . 1 1 . . 1 . 10 . Energy Discharges 14 | . . . . . . . . 1 1 1 . . . . . . . 2 8 1 Data Loss (minor) 13 | . . . . . . . . . . 1 . . 1 2 . 2 1 2 3 1 Data Loss (major) 3 | . . . . . . . . . . . . . . . . . . . 3 . Misdirections 2 | . . . . . . . . . . . . . . . . . . . 2 . Targeting Errors 31 | . . . . . . . . . . 1 . . 2 5 . . . . 13 10 Weapon Failures 3 | . . . . . . . . . . . . . . . . . 1 . 2 . Overload Shots . | . . . . . . . . . . . . . . . . . . . . . Overflow Damage 897 | . . . . . . . . 37 20 8 19 55 142 71 24 25 112 49 261 74 Projectiles 643 | . . . . . . . . 37 18 . 14 55 53 71 24 25 85 49 138 74 Explosions 229 | . . . . . . . . . . 3 . . 86 . . . 27 . 113 . Melee 25 | . . . . . . . . . 2 5 5 . 3 . . . . . 10 . Knockbacks 19 | . . . . . . . . . . . . . . 3 1 2 1 . 6 6 Impact . | . . . . . . . . . . . . . . . . . . . . . Kinetic 19 | . . . . . . . . . . . . . . 3 1 2 1 . 6 6 Secondary . | . . . . . . . . . . . . . . . . . . . . . Self-Inflicted Damage 261 | . . . . . . . . . . 54 . . 20 29 . . 158 . . . Shots 8 | . . . . . . . . . . 2 . . 2 1 . . 3 . . . Rammed 3 | . . . . . . . . . . . . . . . . . . . 2 1 Targets Rammed 5 | . . . . . . . 1 . . . . . . . 1 . . . 2 1 Kicked 1 | . . . . . . . 1 . . . . . . . . . . . . . Crushed 1 | . . . . . . . . . . . . . . . 1 . . . . . Highest Temperature 962 | . 44 48 . . 175 264 121 172 298 226 962 413 573 198 204 365 428 357 657 439 Average Temperature 129 | . 8 25 . . 51 80 55 48 68 88 252 163 198 93 73 149 117 162 135 113 Received Heat Transfer 2476 | . 24 45 . . 36 180 9 36 183 63 123 138 420 210 18 75 450 93 337 36 Effects 70 | . . . . . . . . . . . 17 4 17 . . . 3 . 25 4 Shutdowns 34 | . . . . . . . . . . . 7 3 9 . . . 1 . 12 2 Energy Bleed 7 | . . . . . . . . . . . 1 1 1 . . . 1 . 3 . Interference 8 | . . . . . . . . . . . . . 4 . . . . . 2 2 Matter Decay 6 | . . . . . . . . . . . 1 . 1 . . . 1 . 3 . Short Circuit 8 | . . . . . . . . . . . 5 . . . . . . . 3 . Damage (minor) 5 | . . . . . . . . . . . 2 . 2 . . . . . 1 . Damage (major) 2 | . . . . . . . . . . . 1 . . . . . . . 1 . Siege Activations 11 | . . . . . . . . . . . . . . 1 1 1 3 2 1 2 Total Turns 198 | . . . . . . . . . . . . . . 25 19 30 34 21 17 52 Longest Duration 37 | . . . . . . . . . . . . . . 25 19 30 21 14 17 37 Robots Corrupted 14 | . . . . . . . . 1 1 . . . . 1 . . . . 3 8 Combat Hostiles 11 | . . . . . . . . 1 1 . . . . 1 . . . . 3 5 Parts Fried 46 | . . . . . . . . 2 6 . . . 10 1 . . . . 11 16 Impact Corruptions 1 | . . . . . . . . . . . . . . . . . . . 1 . Robots Melted 1 | . . . . . . . . . . . . 1 . . . . . . . . Combat Hostiles 1 | . . . . . . . . . . . . 1 . . . . . . . . Parts Melted 13 | . 2 . . . 1 . 1 . 1 . 3 1 2 . . . 2 . . . Heat Transferred 9784 | . 804 186 . . 222 980 311 . . . 962 999 2163 250 175 150 1957 375 250 . Parts Sabotaged . | . . . . . . . . . . . . . . . . . . . . . Parts Stolen . | . . . . . . . . . . . . . . . . . . . . . Parts Stripped . | . . . . . . . . . . . . . . . . . . . . . Power Chain Reactions 2 | . . . . . . . . . . . . . 1 . . . . . 1 . Missiles Intercepted . | . . . . . . . . . . . . . . . . . . . . . Alert | -11 -10 -10 -10 -9 -8 -8 -7 -7 -7 -7 -6 -6 -5 -5 -4 -4 -4 -4 -3 -2 ------- Run | Scr Mat Min Exi Min Mat Gar Fac Gar Fac Gar Fac Ext Fac Gar Fac Gar Fac Gar Res Res Peak Influence 1085 | . 175 100 . . 426 695 415 769 799 987 524 193 743 936 433 386 1085 938 410 555 Average Influence 327 | . 61 69 . . 144 570 372 614 343 719 327 94 394 770 302 305 655 716 138 181 Maximum Alert Level 3 | . . . . . 2 2 2 3 3 3 2 . 3 3 2 1 3 3 2 2 Low Security (%) 41 | 100 100 100 . 100 68 . . . 14 . 31 100 22 . 24 24 4 . 76 70 Level 1 22 | . . . . . 28 18 49 13 57 . 35 . 30 . 57 75 1 . 18 11 Level 2 23 | . . . . . 3 81 50 42 27 43 33 . 35 45 18 . 42 45 5 17 Level 3 11 | . . . . . . . . 43 1 56 . . 11 54 . . 52 54 . . Level 4 . | . . . . . . . . . . . . . . . . . . . . . Level 5 . | . . . . . . . . . . . . . . . . . . . . . High Security . | . . . . . . . . . . . . . . . . . . . . . Max Security . | . . . . . . . . . . . . . . . . . . . . . Squads Dispatched 57 | . 1 . . . 2 . 2 . 14 . 5 . 6 . 3 . 5 . 14 5 Investigation 22 | . 1 . . . 1 . 2 . 9 . 3 . 1 . . . . . 5 . Extermination 12 | . . . . . . . . . 2 . 1 . 1 . 2 . 1 . 4 1 Reinforcement 9 | . . . . . . . . . 2 . . . . . . . 3 . 3 1 Assault 3 | . . . . . . . . . . . 1 . 1 . . . 1 . . . Garrison 11 | . . . . . 1 . . . 1 . . . 3 . 1 . . . 2 3 Intercept . | . . . . . . . . . . . . . . . . . . . . . Construction Impeded 4 | . . . . . . . . . . . . . . . . . 1 . 2 1 Haulers Reinforced 2 | . . . . . . . . . . . . . . . . . 2 . . . Stealth | -11 -10 -10 -10 -9 -8 -8 -7 -7 -7 -7 -6 -6 -5 -5 -4 -4 -4 -4 -3 -2 --------- Run | Scr Mat Min Exi Min Mat Gar Fac Gar Fac Gar Fac Ext Fac Gar Fac Gar Fac Gar Res Res Distress Signals 13 | . 1 . . . . . . . 1 . 1 2 1 1 . . 1 . 2 3 Communications Jammed . | . . . . . . . . . . . . . . . . . . . . . Distress Signals . | . . . . . . . . . . . . . . . . . . . . . Times Spotted 360 | . 13 2 . . 15 15 4 19 44 14 17 8 35 17 8 10 36 16 60 27 Peak Tracking Total 8 | . 2 2 . . 3 4 2 8 5 3 7 3 4 8 3 4 7 5 6 4 Tactical Retreats 4 | . 1 . . . . 1 . 1 . . . . 1 . . . . . . . Traps | -11 -10 -10 -10 -9 -8 -8 -7 -7 -7 -7 -6 -6 -5 -5 -4 -4 -4 -4 -3 -2 ------- Run | Scr Mat Min Exi Min Mat Gar Fac Gar Fac Gar Fac Ext Fac Gar Fac Gar Fac Gar Res Res Traps Triggered 9 | . 1 . . . . . . . . 1 1 . 3 . . . 2 . 1 . Indirectly . | . . . . . . . . . . . . . . . . . . . . . Trap Hack Attempts . | . . . . . . . . . . . . . . . . . . . . . Triggered . | . . . . . . . . . . . . . . . . . . . . . Disarmed 3 | . 3 . . . . . . . . . . . . . . . . . . . Reprogrammed 6 | . 6 . . . . . . . . . . . . . . . . . . . Reused 1 | . 1 . . . . . . . . . . . . . . . . . . . Traps Extracted . | . . . . . . . . . . . . . . . . . . . . . Installed . | . . . . . . . . . . . . . . . . . . . . . Triggered 1 | . 1 . . . . . . . . . . . . . . . . . . . Machines | -11 -10 -10 -10 -9 -8 -8 -7 -7 -7 -7 -6 -6 -5 -5 -4 -4 -4 -4 -3 -2 ---------- Run | Scr Mat Min Exi Min Mat Gar Fac Gar Fac Gar Fac Ext Fac Gar Fac Gar Fac Gar Res Res Machines Disabled 60 | . . . . . . . 1 2 9 5 2 1 14 4 . 2 14 4 2 . Max in Single Turn 8 | . . . . . . . 1 1 5 2 1 1 8 2 . 2 6 1 1 . Garrison Access 2 | . . . . . . . . . . . . . . . . . . . 2 . Garrison Relay 5 | . . . . . . . . 2 . 2 . . . . . . . 1 . . Phase Generator 2 | . . . . . . . . . . 1 . . . 1 . . . . . . Machines Sabotaged . | . . . . . . . . . . . . . . . . . . . . . Garrisons Compromised . | . . . . . . . . . . . . . . . . . . . . . Overloaded Fab Kills . | . . . . . . . . . . . . . . . . . . . . . Fab Network Shutdowns . | . . . . . . . . . . . . . . . . . . . . . Hacking | -11 -10 -10 -10 -9 -8 -8 -7 -7 -7 -7 -6 -6 -5 -5 -4 -4 -4 -4 -3 -2 --------- Run | Scr Mat Min Exi Min Mat Gar Fac Gar Fac Gar Fac Ext Fac Gar Fac Gar Fac Gar Res Res Machines Accessed 59 | . 4 . 3 1 2 . 5 . 13 . 6 1 3 . 4 . 2 . 14 1 Terminals 25 | . 4 . . 1 . . . . 6 . 3 1 1 . 2 . . . 6 1 Fabricators 14 | . . . . . . . 4 . 4 . . . 1 . . . 1 . 4 . Repair Stations 4 | . . . . . . . . . 1 . 1 . . . 1 . . . 1 . Recycling Units 3 | . . . . . 1 . . . 1 . . . . . . . . . 1 . Scanalyzers 2 | . . . . . . . . . . . 2 . . . . . . . . . Garrison Access 8 | . . . . . 1 . 1 . 1 . . . 1 . 1 . 1 . 2 . Total Hacks 204 | . 21 . 41 3 3 . 10 . 37 . 17 3 9 . 11 . 4 . 42 3 Successful 175 | . 19 . 41 3 3 . 8 . 27 . 16 3 9 . 10 . 3 . 32 1 Failed 29 | . 2 . . . . . 2 . 10 . 1 . . . 1 . 1 . 10 2 Catastrophic 1 | . . . . . . . . . . . . . . . . . . . 1 . Database Lockouts . | . . . . . . . . . . . . . . . . . . . . . Manual 83 | . 11 . 2 2 1 . 4 . 17 . 5 2 3 . 4 . 3 . 26 3 Terminals 90 | . 21 . . 3 . . . . 20 . 8 3 3 . 6 . . . 23 3 Fabricators 36 | . . . . . . . 9 . 9 . . . 4 . . . 3 . 11 . Repair Stations 13 | . . . . . . . . . 2 . 4 . . . 3 . . . 4 . Recycling Units 7 | . . . . . 1 . . . 4 . . . . . . . . . 2 . Scanalyzers 5 | . . . . . . . . . . . 5 . . . . . . . . . Garrison Access 12 | . . . . . 2 . 1 . 2 . . . 2 . 2 . 1 . 2 . Terminal Hacks 75 | . 8 . 41 1 . . . . 7 . 4 1 2 . 2 . . . 9 . Record 41 | . . . 41 . . . . . . . . . . . . . . . . . Part Schematic 10 | . . . . . . . . . 2 . . . 1 . . . . . 7 . Robot Schematic 1 | . . . . . . . . . 1 . . . . . . . . . . . Robot Analysis 1 | . . . . . . . . . . . . . . . . . . . 1 . Open Door 2 | . . . . . . . . . . . 1 1 . . . . . . . . Level Access Points 2 | . . . . . . . . . . . 1 . . . 1 . . . . . Emergency Access Points 3 | . 2 . . . . . . . . . . . . . 1 . . . . . Machine Index 2 | . 1 . . . . . . . . . 1 . . . . . . . . . Locate Traps 2 | . 2 . . . . . . . . . . . . . . . . . . . Disarm Traps 1 | . 1 . . . . . . . . . . . . . . . . . . . Reprogram Traps 2 | . 1 . . . . . . . 1 . . . . . . . . . . . Surveillance Status 2 | . . . . . . . . . 1 . 1 . . . . . . . . . Hauler Manifests 1 | . 1 . . . . . . . . . . . . . . . . . . . Registered Prototypes 2 | . . . . . . . . . 1 . . . . . . . . . 1 . Zone Layout 3 | . . . . 1 . . . . 1 . . . 1 . . . . . . . Fabricator Hacks 18 | . . . . . . . 3 . 5 . . . 2 . . . . . 8 . Network Status 4 | . . . . . . . 2 . 1 . . . . . . . . . 1 . Load Schematic 7 | . . . . . . . . . 3 . . . 1 . . . . . 3 . Build 7 | . . . . . . . 1 . 1 . . . 1 . . . . . 4 . Repair Station Hacks 7 | . . . . . . . . . . . 3 . . . 2 . . . 2 . Scan Component 4 | . . . . . . . . . . . 2 . . . 1 . . . 1 . Repair 3 | . . . . . . . . . . . 1 . . . 1 . . . 1 . Recycling Unit Hacks 2 | . . . . . . . . . 2 . . . . . . . . . . . Process 1 | . . . . . . . . . 1 . . . . . . . . . . . Report Inventory 1 | . . . . . . . . . 1 . . . . . . . . . . . Scanalyzer 4 | . . . . . . . . . . . 4 . . . . . . . . . Insert Component 2 | . . . . . . . . . . . 2 . . . . . . . . . Analyze 2 | . . . . . . . . . . . 2 . . . . . . . . . Garrison Access Hacks 12 | . . . . . 2 . 1 . 2 . . . 2 . 2 . 1 . 2 . Unlock Access 6 | . . . . . 1 . 1 . 1 . . . 1 . 1 . 1 . . . Seal Access 2 | . . . . . . . . . . . . . . . . . . . 2 . Coupler Status 4 | . . . . . 1 . . . 1 . . . 1 . 1 . . . . . Unauthorized Hacks 121 | . 22 . . 4 2 . 8 . 27 . 10 4 6 . 8 . 5 . 23 2 Terminals 36 | . 11 . . 2 . . . . 6 . 3 2 1 . 3 . . . 7 1 Track 6 | . 3 . . 1 . . . . . . . 1 . . 1 . . . . . Assimilate 5 | . 4 . . . . . . . . . . . . . . . . . 1 . Botnet 25 | . 4 . . 1 . . . . 6 . 3 1 1 . 2 . . . 6 1 Fabricators 14 | . . . . . . . 4 . 3 . . . 2 . . . 2 . 3 . Report 1 | . . . . . . . 1 . . . . . . . . . . . . . Prioritize 7 | . . . . . . . 2 . 1 . . . 1 . . . 1 . 2 . Siphon 4 | . . . . . . . . . 1 . . . 1 . . . 1 . 1 . Haulers 2 | . . . . . . . 1 . 1 . . . . . . . . . . . Repair Stations 3 | . . . . . . . . . 1 . 1 . . . 1 . . . . . Mechanics 3 | . . . . . . . . . 1 . 1 . . . 1 . . . . . Recycling Units 3 | . . . . . 1 . . . 1 . . . . . . . . . 1 . Monitor 1 | . . . . . . . . . . . . . . . . . . . 1 . Mask 1 | . . . . . . . . . 1 . . . . . . . . . . . Tunnel 1 | . . . . . 1 . . . . . . . . . . . . . . . Scanalyzers 1 | . . . . . . . . . . . 1 . . . . . . . . . Extract 1 | . . . . . . . . . . . 1 . . . . . . . . . Garrison Access . | . . . . . . . . . . . . . . . . . . . . . Data Cores Recovered 2 | . . . . . . . . . 1 . 1 . . . . . . . . . Used . | . . . . . . . . . . . . . . . . . . . . . Hacking Detections 47 | . 4 . . 1 1 . 3 . 13 . 5 . 3 . 3 . 1 . 12 1 Full Trace Events 21 | . 2 . . . . . 2 . 9 . 2 . 1 . . . . . 5 . Feedback Events 2 | . . . . . . . . . 1 . . . . . . . . . 1 . Corruption 2 | . . . . . . . . . 1 . . . . . . . . . 1 . Feedback Blocked . | . . . . . . . . . . . . . . . . . . . . . Robot Schematics Acquired 1 | . . . . . . . . . 1 . . . . . . . . . . . Robots Built 1 | . . . . . . . . . . . . . . . . . . . 1 . Matter 153 | . . . . . . . . . . . . . . . . . . . 153 . Time 27 | . . . . . . . . . . . . . . . . . . . 27 . Total Robot Build Rating 1 | . . . . . . . . . . . . . . . . . . . 1 . Part Schematics Acquired 13 | . . . . . . . . . 2 . 3 . 1 . . . . . 7 . Parts Built 8 | . . . . . . . 1 . 1 . . . 2 . . . . . 4 . Matter 1515 | . . . . . . . 212 . 234 . . . 159 . . . . . 910 . Time 349 | . . . . . . . 53 . 117 . . . 53 . . . . . 126 . Total Part Build Rating 57 | . . . . . . . 6 . 7 . . . 12 . . . . . 32 . Parts Repaired 3 | . . . . . . . . . . . 1 . . . 1 . . . 1 . Time 86 | . . . . . . . . . . . 30 . . . 28 . . . 28 . Parts Recycled . | . . . . . . . . . . . . . . . . . . . . . Recycled Matter 62 | . . . . . . . . . 62 . . . . . . . . . . . Retrieved Matter . | . . . . . . . . . . . . . . . . . . . . . Retrieved Components . | . . . . . . . . . . . . . . . . . . . . . Parts Scanalyzed 2 | . . . . . . . . . . . 2 . . . . . . . . . Part Schematics Acquired 2 | . . . . . . . . . . . 2 . . . . . . . . . Parts Damaged . | . . . . . . . . . . . . . . . . . . . . . Bothacking | -11 -10 -10 -10 -9 -8 -8 -7 -7 -7 -7 -6 -6 -5 -5 -4 -4 -4 -4 -3 -2 ------------ Run | Scr Mat Min Exi Min Mat Gar Fac Gar Fac Gar Fac Ext Fac Gar Fac Gar Fac Gar Res Res Used RIF Installer 6 | . . . . . . 1 . 1 . 1 . . . 1 . 1 . 1 . . Coupler Efficiency 2 | . . . . . . . . . . 1 . . . . . 1 . . . . Robot Detection 1 | . . . . . . . . . . . . . . . . . . 1 . . Patrol Navigation 1 | . . . . . . . . 1 . . . . . . . . . . . . Program Shield 1 | . . . . . . . . . . . . . . 1 . . . . . . Robots Hacked 35 | . . . . . . . . . 13 . 3 3 . . 3 . 2 . 11 . Non-combat 25 | . . . . . . . . . 9 . 2 2 . . 1 . 2 . 9 . Combat 10 | . . . . . . . . . 4 . 1 1 . . 2 . . . 2 . Robot Hacks Applied 48 | . . . . . . . . . 16 . 4 4 . . 3 . 2 . 19 . parse_system 4 | . . . . . . . . . 1 . . . . . . . . . 3 . no_distress 1 | . . . . . . . . . 1 . . . . . . . . . . . generate_echo 1 | . . . . . . . . . . . 1 . . . . . . . . . deconstruct_machine 1 | . . . . . . . . . . . . . . . . . . . 1 . ignore_repairs 1 | . . . . . . . . . . . . . . . . . . . 1 . map_walls 1 | . . . . . . . . . . . . . . . . . 1 . . . find_recycling 1 | . . . . . . . . . . . . . . . . . . . 1 . ignore_parts 1 | . . . . . . . . . . . . 1 . . . . . . . . find_station 1 | . . . . . . . . . . . . . . . . . . . 1 . purge_threat 3 | . . . . . . . . . . . . . . . . . . . 3 . find_terminals 1 | . . . . . . . . . . . . . . . . . . . 1 . locate_traps 1 | . . . . . . . . . . . . . . . . . . . 1 . reprogram_traps 2 | . . . . . . . . . 1 . . . . . . . . . 1 . map_route 1 | . . . . . . . . . . . . . . . . . . . 1 . mark_security 1 | . . . . . . . . . . . . . . . . . . . 1 . relay_feed 1 | . . . . . . . . . . . . . . . . . . . 1 . overload_power 1 | . . . . . . . . . 1 . . . . . . . . . . . amplify_resonance 6 | . . . . . . . . . 2 . 2 1 . . . . . . 1 . formatsys_low 6 | . . . . . . . . . 4 . . 1 . . . . 1 . . . formatsys_high 13 | . . . . . . . . . 6 . 1 1 . . 3 . . . 2 . Relay Couplers Released 10 | . . . . . . . . 4 . 4 . . . . . . . 2 . . Machine Destruction 10 | . . . . . . . . 4 . 4 . . . . . . . 2 . . Attached 5 | . . . . . . . . . 2 . 2 . . . . . . 1 . . Robots Rewired . | . . . . . . . . . . . . . . . . . . . . . Allies Hacked . | . . . . . . . . . . . . . . . . . . . . . Hacks Repelled . | . . . . . . . . . . . . . . . . . . . . . Allies | -11 -10 -10 -10 -9 -8 -8 -7 -7 -7 -7 -6 -6 -5 -5 -4 -4 -4 -4 -3 -2 -------- Run | Scr Mat Min Exi Min Mat Gar Fac Gar Fac Gar Fac Ext Fac Gar Fac Gar Fac Gar Res Res Total Allies 23 | . . 3 . . . . . . 10 . 1 2 . . 3 . 1 . 3 . Largest Group 7 | . . 3 2 2 2 . . . 7 4 1 2 . . 3 1 1 . 1 . Highest-Rated Group 172 | . . 40 24 24 24 . . . 172 113 32 60 . . 124 49 20 . 44 . Highest-Rated Ally 49 | . . 16 16 16 16 . . . 32 32 32 32 . . 49 49 20 . 44 . Total Orders 17 | . . . . . . . . . 10 . . . . . 3 . . . 4 . GOTO 4 | . . . . . . . . . 3 . . . . . 1 . . . . . ROAM 3 | . . . . . . . . . 3 . . . . . . . . . . . FOLLOW 1 | . . . . . . . . . 1 . . . . . . . . . . . GUARD 2 | . . . . . . . . . . . . . . . 2 . . . . . AID 3 | . . . . . . . . . 3 . . . . . . . . . . . DROP 1 | . . . . . . . . . . . . . . . . . . . 1 . PICKUP 1 | . . . . . . . . . . . . . . . . . . . 1 . COLLECT 2 | . . . . . . . . . . . . . . . . . . . 2 . Ally Attacks 85 | . . 7 . . 9 . . . 28 9 11 1 . . 14 6 . . . . Total Damage 2633 | . . 91 . . 85 . . . 1117 306 321 75 . . 462 176 . . . . Kills 20 | . . . . . . . . . 11 2 2 . . . 4 1 . . . . Allies Corrupted . | . . . . . . . . . . . . . . . . . . . . . Allies Melted . | . . . . . . . . . . . . . . . . . . . . . Intel | -11 -10 -10 -10 -9 -8 -8 -7 -7 -7 -7 -6 -6 -5 -5 -4 -4 -4 -4 -3 -2 ------- Run | Scr Mat Min Exi Min Mat Gar Fac Gar Fac Gar Fac Ext Fac Gar Fac Gar Fac Gar Res Res Robot Analysis Total 1 | . . . . . . . . . . . . . . . . . . . 1 . Derelict Logs Recovered . | . . . . . . . . . . . . . . . . . . . . . Drone Launches 2 | . . . . . . . . . . . 2 . . . . . . . . . Drone Recoveries . | . . . . . . . . . . . . . . . . . . . . . Exploration | -11 -10 -10 -10 -9 -8 -8 -7 -7 -7 -7 -6 -6 -5 -5 -4 -4 -4 -4 -3 -2 ------------- Run | Scr Mat Min Exi Min Mat Gar Fac Gar Fac Gar Fac Ext Fac Gar Fac Gar Fac Gar Res Res Turns Passed 14974 | 83 575 255 974 234 363 430 337 382 1473 622 1161 339 780 440 668 257 937 513 3414 737 Spaces Moved 7908 | 45 302 144 597 130 210 272 207 255 1237 314 617 155 286 204 345 113 389 250 1530 306 Core 3 | 3 . . . . . . . . . . . . . . . . . . . . Treads 5858 | 42 302 144 597 130 65 . . . 71 314 617 155 284 204 345 113 389 250 1530 306 Legs 1270 | . . . . . 145 272 207 255 391 . . . . . . . . . . . Wheels . | . . . . . . . . . . . . . . . . . . . . . Hover 777 | . . . . . . . . . 775 . . . 2 . . . . . . . Flight . | . . . . . . . . . . . . . . . . . . . . . Fastest Speed 44 | 50 160 160 160 160 120 120 120 120 44 160 160 160 160 164 161 161 155 160 156 156 Average Speed 143 | 152 160 160 160 160 136 120 120 120 74 160 160 160 166 164 161 161 158 160 162 156 Slowest Speed 300 | 160 160 160 160 160 210 120 120 120 220 160 180 160 300 165 165 161 161 160 180 156 Overloaded Moves . | . . . . . . . . . . . . . . . . . . . . . Propulsion Burnouts . | . . . . . . . . . . . . . . . . . . . . . Robots Hopped . | . . . . . . . . . . . . . . . . . . . . . Cave-ins Triggered 1 | . . . . . . . . . . . . . . . . . . . . 1 Exploration Rate (%) 34 | 5 59 42 91 31 22 57 6 57 32 48 17 31 9 62 8 40 13 52 35 7 Regions Visited 20 Branch Regions 4 Pre-discovered Areas 2 | . . . 1 . 1 . . . . . . . . . . . . . . . Known Exits Taken 14 | 1 1 1 1 1 1 . 1 . 1 . 1 1 1 . 1 . 1 . 1 . Unknown Exits Taken . | . . . . . . . . . . . . . . . . . . . . . Scrap Searched . | . . . . . . . . . . . . . . . . . . . . . Spaces Dug 22 | . . . . . . . . . 7 . 1 . . . 1 2 . . 11 . Terrain Destroyed 833 | . . . 15 . 18 . 1 . 77 56 18 1 58 79 12 22 250 46 165 15 Melee 21 | . . . . . . . . . 7 . 1 . . . . 2 . . 11 . Projectile 160 | . . . . . 18 . 1 . 14 . 3 1 10 4 12 9 51 . 22 15 AOE 652 | . . . 15 . . . . . 56 56 14 . 48 75 . 11 199 46 132 . Actions | -11 -10 -10 -10 -9 -8 -8 -7 -7 -7 -7 -6 -6 -5 -5 -4 -4 -4 -4 -3 -2 --------- Run | Scr Mat Min Exi Min Mat Gar Fac Gar Fac Gar Fac Ext Fac Gar Fac Gar Fac Gar Res Res Total 10802 | 56 355 158 612 156 279 343 288 321 1741 421 746 211 502 277 441 158 617 334 2312 474 Wait 1049 | . 17 1 . 27 11 11 50 10 241 55 39 1 36 14 46 10 35 15 388 42 Move 7891 | 44 301 143 596 129 209 271 207 254 1237 313 616 154 286 202 345 111 389 249 1529 306 Hop . | . . . . . . . . . . . . . . . . . . . . . Pick Up 137 | 5 4 1 2 . 5 5 6 3 29 6 6 1 9 5 3 . 8 1 30 8 Fast Attach 58 | 6 2 . . . 4 . 2 . 12 1 9 . 8 1 2 . 3 . 8 . Attach 45 | 1 1 1 2 . 2 1 2 . 11 1 3 . 3 2 1 . 2 . 12 . Detach 11 | . . . 1 . . . . . 5 . 2 . . . 1 . . . 2 . Swap 163 | . 2 1 1 . 4 . 2 . 28 . 10 7 5 4 8 6 17 6 41 21 Drop 165 | . 4 . 5 . 5 4 7 2 38 4 14 . 13 7 6 . 15 2 32 7 Fire 828 | . 21 5 5 . 26 35 8 40 90 20 29 39 81 26 15 18 98 33 166 73 Melee 44 | . . . . . . . . . 15 8 2 . 4 . . 3 . 1 11 . Ram . | . . . . . . . . . . . . . . . . . . . . . Kick 1 | . . . . . . . 1 . . . . . . . . . . . . . Crush 4 | . . . . . . . . . . . . . . . 1 . . . 2 1 Escape Stasis . | . . . . . . . . . . . . . . . . . . . . . Rewire . | . . . . . . . . . . . . . . . . . . . . . Trap . | . . . . . . . . . . . . . . . . . . . . . Miscellaneous 406 | . 3 6 . . 13 16 3 12 35 13 16 9 57 16 13 10 50 27 91 16 Route ------- -11/Scrapyard -10/Materials -10/Mines -10/Exiles (discovered 2 exits: *Min x2) -9/Mines -8/Materials (discovered 2 exits: *Sto / Gar) -8/Garrison (discovered 2 exits: *Fac x2) -7/Factory -7/Garrison (discovered 2 exits: *Fac x2) -7/Factory -7/Garrison -6/Factory (discovered 5 exits: Fac x4 / *Ext) -6/Extension -5/Factory -5/Garrison -4/Factory (discovered 5 exits: Res x4 / Gar) -4/Garrison -4/Factory -4/Garrison -3/Research (discovered 3 exits: *Res x3) -2/Research History --------- Turn | Location | Event 1 | -11/Scrapyard | Upgraded with Propulsion slot (x1) 1 | -11/Scrapyard | Upgraded with Utility slot (x1) 1 | -11/Scrapyard | Upgraded with Weapon slot (x1) 29 | -11/Scrapyard | Identified exit to Materials 29 | -11/Scrapyard | Discovered exit to Materials (range 16) 84 | -11/Scrapyard | Entered Materials 313 | -10/Materials | Build established: Hacker-Mutant 651 | -10/Materials | Identified exit to Mines 651 | -10/Materials | Discovered exit to Mines (range 6) 659 | -10/Materials | Entered Mines 661 | -10/Mines | Reached level 2 671 | -10/Mines | Assisted by bots powering up and referring to "LRC-V3" 672 | -10/Mines | Upgraded with Utility slot (x1) 679 | -10/Mines | Met a Derelict bent on vengeance 719 | -10/Mines | Received a Rocket Launcher from a helpful Derelict 858 | -10/Mines | Deemed a non-threat by the Exiles lab entrance 858 | -10/Mines | Identified exit to Exiles 858 | -10/Mines | Discovered exit to Exiles (range 5) 914 | -10/Mines | Entered Exiles 914 | -10/Exiles | Accompanied by 2 allies 985 | -10/Exiles | Identified exit to Mines 985 | -10/Exiles | Discovered exit to Mines (range 15) 1007 | -10/Exiles | Met 8R-AWN 1035 | -10/Exiles | Met EX-HEX 1107 | -10/Exiles | Met EX-DEC 1174 | -10/Exiles | Visited The Gauntlet 1405 | -10/Exiles | Learned location of Zion (-7) 1466 | -10/Exiles | Discovered exit to Mines (range 14) 1583 | -10/Exiles | Met EX-BIN 1621 | -10/Exiles | Aligned with FarCom system 1623 | -10/Exiles | Given EX-Vault access code 1717 | -10/Exiles | Opened EX-Vault 1741 | -10/Exiles | Found Prototype Ballistic Gun 1774 | -10/Exiles | Warned to stay clear of 0b10 Research branches 1888 | -10/Exiles | Left Exiles lab with XL Autogun Array 1888 | -10/Exiles | Entered Mines 1888 | -9/Mines | Accompanied by 2 allies 1890 | -9/Mines | Reached level 3 1898 | -9/Mines | Upgraded with Weapon slot (x1) 1983 | -9/Mines | Identified exit to Materials 1983 | -9/Mines | Discovered exit to Materials (range 9) 2122 | -9/Mines | Entered Materials 2122 | -8/Materials | Accompanied by 2 allies 2124 | -8/Materials | Reached level 4 2124 | -8/Materials | Reached level 5 2124 | -8/Materials | Reached level 6 2126 | -8/Materials | Upgraded with Propulsion slot (x2) 2126 | -8/Materials | Upgraded with Utility slot (x1) 2126 | -8/Materials | Upgraded with Weapon slot (x1) 2127 | -8/Materials | Identified XL Autogun Array 2207 | -8/Materials | Build established: Hacker-Skirmisher 2387 | -8/Materials | Reached level 7 2456 | -8/Materials | Upgraded with Weapon slot (x1) 2462 | -8/Materials | Identified exit to Storage 2462 | -8/Materials | Discovered exit to Storage (range 15) 2463 | -8/Materials | Garrison activated, responded to threat 2481 | -8/Materials | Identified exit to Garrison 2485 | -8/Materials | Entered Garrison 2531 | -8/Garrison | Reached level 8 2533 | -8/Garrison | Upgraded with Utility slot (x1) 2558 | -8/Garrison | Triggered checkpoint 2590 | -8/Garrison | Triggered checkpoint 2690 | -8/Garrison | Triggered checkpoint 2694 | -8/Garrison | Reached level 9 2725 | -8/Garrison | Triggered checkpoint 2797 | -8/Garrison | Identified exit to Factory 2797 | -8/Garrison | Discovered exit to Factory (range 12) 2821 | -8/Garrison | Build established: Scavenger-Skirmisher 2883 | -8/Garrison | Discovered exit to Factory (range 13) 2910 | -8/Garrison | Installed Relay Interface Framework 2915 | -8/Garrison | Entered Factory 2917 | -7/Factory | Reached level 10 2921 | -7/Factory | Upgraded with Propulsion slot (x1) 3071 | -7/Factory | Fabricated Lrn. Proton Cannon (x1) 3081 | -7/Factory | Reached level 11 3252 | -7/Factory | Identified exit to Garrison 3252 | -7/Factory | Entered Garrison 3294 | -7/Garrison | Triggered checkpoint 3302 | -7/Garrison | Reached level 12 3350 | -7/Garrison | Triggered checkpoint 3373 | -7/Garrison | Destroyed 16 combat bots 3400 | -7/Garrison | Identified exit to Factory 3400 | -7/Garrison | Discovered exit to Factory (range 8) 3428 | -7/Garrison | Triggered checkpoint 3466 | -7/Garrison | Garrison Relay disabled 3466 | -7/Garrison | Reached level 13 3516 | -7/Garrison | Triggered checkpoint 3568 | -7/Garrison | Triggered checkpoint 3581 | -7/Garrison | Garrison Relay disabled 3608 | -7/Garrison | Discovered exit to Factory (range 12) 3629 | -7/Garrison | Expanded RIF knowledge: Patrol Navigation 3634 | -7/Garrison | Entered Factory 3831 | -7/Factory | Fabricated HERF Cannon (x1) 4305 | -7/Factory | Reached level 14 4327 | -7/Factory | Upgraded with Power slot (x2) 4327 | -7/Factory | Upgraded with Utility slot (x1) 4617 | -7/Factory | Build established: Hacker-Scout 4727 | -7/Factory | Reached level 15 4897 | -7/Factory | Destroyed 10 combat bots 4963 | -7/Factory | Found Prototype Launcher 4964 | -7/Factory | Identified Rocket Array 5083 | -7/Factory | Garrison activated, responded to threat 5107 | -7/Factory | Identified exit to Garrison 5107 | -7/Factory | Entered Garrison 5107 | -7/Garrison | Accompanied by 4 allies 5115 | -7/Garrison | Expanded RIF knowledge: Coupler Efficiency 5115 | -7/Garrison | Reached level 16 5233 | -7/Garrison | Build established: Hacker-Skirmisher 5301 | -7/Garrison | Upgraded with Weapon slot (x1) 5332 | -7/Garrison | Triggered checkpoint 5375 | -7/Garrison | Garrison Relay disabled 5427 | -7/Garrison | Phase Generator disabled 5548 | -7/Garrison | Triggered checkpoint 5548 | -7/Garrison | Triggered checkpoint 5595 | -7/Garrison | Build established: Hacker-Assassin 5626 | -7/Garrison | Garrison Relay disabled 5665 | -7/Garrison | Identified exit to Factory 5665 | -7/Garrison | Discovered exit to Factory (range 15) 5729 | -7/Garrison | Entered Factory 5729 | -6/Factory | Accompanied by 1 ally 5731 | -6/Factory | Reached level 17 6079 | -6/Factory | First assault squad dispatched 6212 | -6/Factory | Reached level 18 6302 | -6/Factory | Repaired Broken Med. Treads 6536 | -6/Factory | Build established: Hacker-Skirmisher 6590 | -6/Factory | Identified exit to Factory 6808 | -6/Factory | Identified exit to Extension 6808 | -6/Factory | Discovered exit to Extension (range 6) 6890 | -6/Factory | Entered Extension 6890 | -6/Extension | Accompanied by 1 ally 7021 | -6/Extension | Build established: Hacker-Mutant 7041 | -6/Extension | Spotted B-75 Beast 7054 | -6/Extension | Destroyed B-75 Beast 7066 | -6/Extension | Spotted B-75 Beast 7124 | -6/Extension | Destroyed B-75 Beast 7165 | -6/Extension | Disrupted transfer network 7225 | -6/Extension | Discovered exit to Factory (range 3) 7229 | -6/Extension | Entered Factory 7231 | -5/Factory | Reached level 19 7236 | -5/Factory | Upgraded with Utility slot (x1) 7371 | -5/Factory | Reached level 20 7380 | -5/Factory | Core integrity fell below 50% 7413 | -5/Factory | Core integrity fell below 20% 7554 | -5/Factory | Spotted B-75 Beast 7573 | -5/Factory | Destroyed B-75 Beast 7594 | -5/Factory | Destroyed 8 combat bots 7627 | -5/Factory | Garrison activated, responded to threat 7732 | -5/Factory | Reached level 21 7754 | -5/Factory | Fabricated Arm. Medium Treads (x2) 7829 | -5/Factory | First assault squad dispatched 8009 | -5/Factory | Identified exit to Garrison 8009 | -5/Factory | Entered Garrison 8049 | -5/Garrison | Phase Generator disabled 8202 | -5/Garrison | Triggered checkpoint 8202 | -5/Garrison | Triggered checkpoint 8210 | -5/Garrison | Reached level 22 8259 | -5/Garrison | Destroyed 8 combat bots 8318 | -5/Garrison | Triggered checkpoint 8323 | -5/Garrison | Triggered checkpoint 8328 | -5/Garrison | Build established: Hacker-Executioner 8405 | -5/Garrison | Identified exit to Factory 8405 | -5/Garrison | Discovered exit to Factory (range 14) 8438 | -5/Garrison | Expanded RIF knowledge: Program Shield 8449 | -5/Garrison | Entered Factory 8451 | -4/Factory | Reached level 23 8500 | -4/Factory | Upgraded with Utility slot (x1) 8574 | -4/Factory | Found Quantum Capacitor 8889 | -4/Factory | Identified exit to Research 8964 | -4/Factory | Repaired Imp. Remote Datajack 8997 | -4/Factory | Garrison activated, responded to threat 9117 | -4/Factory | Identified exit to Garrison 9117 | -4/Factory | Entered Garrison 9117 | -4/Garrison | Accompanied by 1 ally 9161 | -4/Garrison | Triggered checkpoint 9171 | -4/Garrison | Spotted B-86 Titan 9179 | -4/Garrison | Reached level 24 9181 | -4/Garrison | Destroyed B-86 Titan 9181 | -4/Garrison | Triggered checkpoint 9205 | -4/Garrison | Triggered checkpoint 9240 | -4/Garrison | Destroyed 8 combat bots 9336 | -4/Garrison | Identified exit to Factory 9336 | -4/Garrison | Discovered exit to Factory (range 13) 9365 | -4/Garrison | Expanded RIF knowledge: Coupler Efficiency 9374 | -4/Garrison | Entered Factory 9624 | -4/Factory | First assault squad dispatched 9774 | -4/Factory | Found Prototype Processor 9775 | -4/Factory | Identified Exp. Targeting Computer 9780 | -4/Factory | Found Exp. Targeting Computer 9827 | -4/Factory | Core integrity fell below 50% 9870 | -4/Factory | Reached level 25 10120 | -4/Factory | Found Prototype Hackware 10121 | -4/Factory | Identified Exp. Hacking Suite 10311 | -4/Factory | Identified exit to Garrison 10311 | -4/Factory | Entered Garrison 10319 | -4/Garrison | Expanded RIF knowledge: Robot Detection 10403 | -4/Garrison | Triggered checkpoint 10456 | -4/Garrison | Garrison Relay disabled 10519 | -4/Garrison | Triggered checkpoint 10537 | -4/Garrison | Triggered checkpoint 10538 | -4/Garrison | Triggered checkpoint 10583 | -4/Garrison | Destroyed 9 combat bots 10611 | -4/Garrison | Triggered checkpoint 10807 | -4/Garrison | Discovered exit to Research (range 12) 10824 | -4/Garrison | Entered Research 10826 | -3/Research | Reached level 26 10826 | -3/Research | Reached level 27 10826 | -3/Research | Upgraded with Propulsion slot (x1) 10951 | -3/Research | Upgraded with Utility slot (x1) 11111 | -3/Research | Garrison activated, responded to threat 11137 | -3/Research | Spotted B-86 Titan 11187 | -3/Research | Destroyed B-86 Titan 11202 | -3/Research | Core integrity fell below 50% 11416 | -3/Research | Reached level 28 11530 | -3/Research | Repaired Broken Quantum Capacitor 11581 | -3/Research | Identified exit to Research 11581 | -3/Research | Discovered exit to Research (range 10) 11787 | -3/Research | Found Fusion Bomb Launcher 12154 | -3/Research | Discovered exit to Research (range 10) 12160 | -3/Research | Found Prototype Processor 12161 | -3/Research | Identified Exp. Target Analyzer 12444 | -3/Research | Found Prototype Launcher 12445 | -3/Research | Identified Mni. Smartbomb Launcher 12506 | -3/Research | Fabricated Biometal Heavy Treads (x2) 12784 | -3/Research | Discovered exit to Research (range 14) 13117 | -3/Research | Found Prototype Processor 13117 | -3/Research | Identified Exp. Signal Interpreter 13275 | -3/Research | Fabricated Exp. Hacking Suite (x1) 13332 | -3/Research | Fabricated Exp. Hacking Suite (x1) 13589 | -3/Research | Fabricated A-02 Transporter (x1) 13621 | -3/Research | Build established: Wizard-Executioner 14041 | -3/Research | Reached level 29 14072 | -3/Research | System corruption reached 10% 14154 | -3/Research | Build established: Wizard-Assassin 14238 | -3/Research | Entered another Research area 14445 | -2/Research | Reached level 30 14689 | -2/Research | Crushed by falling debris 14696 | -2/Research | Core integrity fell below 50% 14719 | -2/Research | Garrison activated, responded to threat 14785 | -2/Research | Core integrity fell below 20% 14817 | -2/Research | Destroyed 9 combat bots 14975 | -2/Research | Destroyed by G-73 Enforcer with Phase Gun Last Messages --------------- 14959_ Slug penetrates Wall. 14959_ System corrupted: Imp. Lightning Gun targeting data glitched. 14959_ H-88 Terminator shuts down. 14960_ H-88 Terminator system terminally corrupted. 14960_ Lgt. Quantum Reactor fried. 14962_ Slug penetrates Wall. 14962_ R-10 Processor collects Lgt. Quantum Reactor. 14965_ Penetrated by Slug. 14966_ R-10 Processor collects Biometal Leg. 14968_ H-88 Terminator IFF system glitched. 14969_ H-88 Terminator system terminally corrupted. 14969_ Lgt. Quantum Reactor fried. 14969_ Adv. Targeting Computer fried. 14969_ Adv. Phase Shifter fried. 14973_ System corrupted: Component data lost. 14973_ Acquired 12 matter. [Achievement: 10k Club] [Achievement: 20k Club] [Achievement: 30k Club] [Achievement: Punisher] Map ----- +----------------------------------------------------+ | " #????????????????????????????????????????????? | | #????????????????????????????????????????????? | | #####????????????????????????????????????????????? | | #?????????????????????????????????????????????? | | #?????????????????????????????????????????????? | | #???????????????????? ????????????????????????? | | #????????????????????[????????????????????????? | | #????????????????????[????????????????????????? | | #????????????????????!????????????????????????? | | #???????????????????? ????????????????????????? | | #???????????????????? ????????????????????????? | | #???????????????????? ????????????????????????? | | #########???????????????/????????????????????????? | | #???????????????[????????????????????????? | | #??????????????#%#???????????????????????? | | #???????????####+#####???????????????????? | | ###########?# [%! #??h????????????????? | | # ! ? #?# #??u????????????????? | | ####+#### #?# """#???????????????????? | | # """ #?# """#???????????????????? | | # """ ??# """#???????????????????? | | # "" ???# ! """#???????????????????? | | % # ????# """#???A???????????????? | | #### # ?????# #??????#????????????? | | #### # ??????#= #???? #????????????? | | # ###+#############@###### #????????????? | | !+ /=! [! %[k ^ k #????????????? | | ==# **|| = [ =! =%= #????????????? | | = # | /==! == [ *%* ^ #????????????? | | !# *!!=*=% % R[ ^ #????????????? | | =######## *=!###g ###############????????????? | | #??????#|[ %### = #??????????????????????????? | | #??????#% !=# # #??????????????????????????? | | ####??? +*[= #?# + ?????????????????????????? | | ???# #!= !#?# # ????????????????????????? | | ???# ! # #?# # ???????????????????????? | | ???# ?# #?# #?###??????????????????????? | | ???# ? ??# #?##+###??????????????????????????? | | ???##?##??#=[ # ?? ????????????????????????????? | | ??????????#%! # ??/ ????????????????????????????? | | ?????????? [! # ? ????????????????????????????? | | ?????????? #? ? ????????????????????????????? | | ????????? #? ???????????????????????????? | | ????????? #?? ???????????????????????????? | | ?????????#######??? ???????????????????????????? | | ???????????#??????? ???????????????????????????? | | ??????????????????? ????????????????????????????? | | ?????????????????????????????????????????????????? | | ?????????????????????????????????????????????????? | | ?????????????????????????????????????????????????? | +----------------------------------------------------+ Best States ------------- Heat Dissipation 104 Coolant Potential 65 Energy Generation 62 Energy Capacity 955 Matter Stores 500 Matter Capacity 500 Sight Range 25 Robot Scan Range 20 Terrain Scan Density 810 ECM Strength 3 EM Shielding 2 Corruption Prevention 20 Armor Coverage 1200 Resistance: KI 45 Resistance: TH 45 Resistance: EX 85 Resistance: EM 50 Resistance: I 35 Resistance: S 35 Resistance: P 35 Evasion (%) 56 Targeting Accuracy 12 Target Analysis 12 Recoil Reduction 6 Matter Filtering 30 Particle Charging 20 Kinecelleration 40 Offensive Hacking 67 Defensive Hacking 15 Item Schematics ----------------- Mic. Fission Core | -7/Factory | Hacked Arm. Medium Treads | -7/Factory | Hacked Imp. Heavy Armor Plating | -6/Factory | Scanalyzed Phase Cannon | -6/Factory | Scanalyzed Hcp. Matter Pod | -6/Factory | Extracted Corruption Screen | -5/Factory | Hacked Exp. Hacking Suite | -3/Research | Hacked Biometal Heavy Treads | -3/Research | Hacked Exp. Cooling System | -3/Research | Hacked Gravity Neutralizing Apparatus | -3/Research | Hacked Quantum Capacitor | -3/Research | Hacked Recoil Nullifier | -3/Research | Hacked Proton Burst Cannon | -3/Research | Hacked Robot Schematics ------------------ A-02 Transporter | -7/Factory | Hacked Fabricated ------------ Lrn. Proton Cannon | x1 | -7/Factory | Preloaded HERF Cannon | x1 | -7/Factory | Preloaded Arm. Medium Treads | x2 | -5/Factory Biometal Heavy Treads | x2 | -3/Research Exp. Hacking Suite | x1 | -3/Research Exp. Hacking Suite | x1 | -3/Research A-02 Transporter | x1 | -3/Research Alien Tech Used ----------------- None Achievements -------------- 10k Club 20k Club 30k Club Assimilation Complete Backstab Brute Force Collateral Damage Dangerous Findings Error 47 Giant Slayer Hey, That's Mine! Infiltrator It's Just You Just What I Needed Knowing Is Half The Battle My Command Is Your Wish Party Time Please Form A Line Power Corrupts Prolific Hacker Punisher Remodeling Respectable Loadout Rockin' Loadout Significant Disruption System Compromised The More The Merrier Tourist Troublemaker Turtlemind Challenges ------------ None RPGLIKE | -11 -10 -10 -10 -9 -8 -8 -7 -7 -7 -7 -6 -6 -5 -5 -4 -4 -4 -4 -3 -2 --------- Run | Scr Mat Min Exi Min Mat Gar Fac Gar Fac Gar Fac Ext Fac Gar Fac Gar Fac Gar Res Res Levels Raised 29 | . . 1 . 1 4 2 2 2 2 1 2 . 3 1 1 1 1 . 4 1 XP Earned 50700 | 6000 1280 760 350 843 6607 2753 2555 3410 3815 1051 2571 769 3797 1283 2101 1126 1588 829 4588 2624 XP Spent 48755 | 6000 . 1420 . 800 6770 3000 2955 1450 3000 3000 1500 . 6085 . 2900 . 1750 . 7225 900 Upgrades 100 | 25 . 5 . 1 13 4 5 7 3 5 1 . 18 . 2 . 1 . 8 2 Power Slot 2 | . . . . . . . . . 2 . . . . . . . . . . . Propulsion Slot 5 | 1 . . . . 2 . 1 . . . . . . . . . . . 1 . Utility Slot 8 | 1 . 1 . . 1 1 . . 1 . . . 1 . 1 . . . 1 . Weapon Slot 5 | 1 . . . 1 2 . . . . 1 . . . . . . . . . . Core Integrity 13 | 8 . . . . . . 1 3 . . . . 1 . . . . . . . Heat Dissipation 10 | 2 . . . . 3 . . . . . . . 5 . . . . . . . Energy Generation 1 | 1 . . . . . . . . . . . . . . . . . . . . Energy Storage 3 | 2 . . . . . 1 . . . . . . . . . . . . . . Matter Storage 4 | 1 . . . . 3 . . . . . . . . . . . . . . . Mass Support 1 | . . . . . . 1 . . . . . . . . . . . . . . Inventory Capacity 7 | 4 . . . . . 1 . . . . 1 . . . . . 1 . . . Sight Range 4 | . . . . . 1 . . 2 . . . . . . . . . . . 1 Sensor Range 7 | 2 . 1 . . . . . 2 . . . . . . . . . . 1 1 Terrain Scan Density 6 | . . 2 . . 1 . . . . . . . 3 . . . . . . . Ranged Accuracy 4 | . . 1 . . . . 2 . . . . . 1 . . . . . . . Melee Accuracy 1 | . . . . . . . . . . . . . 1 . . . . . . . Hack Attack % 3 | . . . . . . . . . . 2 . . . . . . . . 1 . Hack Defense % 3 | . . . . . . . . . . 2 . . . . . . . . 1 . KI Resistance % 2 | 1 . . . . . . 1 . . . . . . . . . . . . . TH Resistance % 2 | . . . . . . . . . . . . . 1 . . . . . 1 . EX Resistance % 2 | . . . . . . . . . . . . . 1 . . . . . 1 . KI Damage % 2 | 1 . . . . . . . . . . . . 1 . . . . . . . TH Damage % 3 | . . . . . . . . . . . . . 2 . . . . . 1 . EX Damage % 2 | . . . . . . . . . . . . . 1 . 1 . . . . . Protomatter Created 5770 | . 24 45 . . 416 251 . 264 607 192 398 285 826 122 97 73 548 181 1038 403 Integrity Restored 8510 | . 19 127 . . 152 282 50 263 612 262 301 207 1293 336 300 219 1124 606 2012 345 Core 7285 | . 12 61 . . 43 218 50 190 391 190 135 207 1293 336 300 219 1078 606 1611 345 Parts 1225 | . 7 66 . . 109 64 . 73 221 72 166 . . . . . 46 . 401 . Protomatter Decayed 2646 | . 16 . . . 238 95 . 193 497 198 322 216 261 . 50 . 109 . 260 191 Game ------ Seed KineticRemoteInterpreter Manual? 0 Play Time 06:21:49 Cumulative 15.5 hours Start 2020.01.01 @ 15:50:05 End 2020.01.02 @ 15:50:10 Sessions 3 Manual Loads 0 Difficulty Explorer Special Mode Winter2019/RPGLIKE Game No. 5 Rogue 0 Adventurer 0 Explorer 5 Win Type - Total 0 Types 0/0/0/0/0/0/0 Lore% 10 Gallery% 17 Achievement% 21 Wizard Run 0 Options --------- ASCII 0 Keyboard 0 Movement Mouse Keybinds 0 Fullscreen 1 Font 14/SmallcapsGlow Map View 72x54 Tactical HUD 1 Map Filters NONE Filters NONE Steam 1 RUN: a7e6e531-7ab2-4b56-adcc-2d286e6a009c